fUST/lending_fUST_20250827
["ID","MTS","AMOUNT","RATE_DAILY","PERIOD"]
[381619184,1756298018898,5014.75700076,0.00020519,2]
[381619185,1756298027757,1486.7343782,0.000199,2]
[381619186,1756298029181,3498.51862104,0.00020519,2]
[381619187,1756298029205,1501.48137896,0.00020519,2]
[381619191,1756298043661,300.0,0.00020518,2]
[381619195,1756298064133,5000.0,0.00020519,2]
[381619196,1756298072411,889.29,0.00020509,3]
[381619198,1756298083150,929.31,0.00020509,3]
[381619199,1756298093808,464.65,0.00020509,3]
[381619200,1756298097445,500.0,0.00020518,2]
[381619201,1756298097796,500.0,0.00020518,2]
[381619202,1756298098423,500.0,0.00020518,2]
[381619203,1756298099275,500.0,0.00020518,2]
[381619204,1756298099648,500.0,0.00020518,2]
[381619205,1756298100130,500.0,0.00020518,2]
[381619206,1756298101003,500.0,0.00020518,2]
[381619207,1756298102130,500.0,0.00020518,2]
[381619208,1756298102377,300.0,0.00020518,2]
[381619209,1756298102428,500.0,0.00020518,2]
[381619210,1756298102461,300.0,0.00020518,2]
[381619211,1756298102561,300.0,0.00020518,2]
[381619212,1756298103524,500.0,0.00020518,2]
[381619213,1756298103630,500.0,0.00020518,2]
[381619214,1756298103710,300.0,0.00020518,2]
[381619215,1756298103764,164.01616361,0.00020518,2]
[381619216,1756298103829,500.0,0.00020518,2]
[381619217,1756298103862,300.0,0.00020518,2]
[381619218,1756298104320,500.0,0.00020518,2]
[381619219,1756298104349,500.0,0.00020518,2]
[381619220,1756298104381,500.0,0.00020518,2]
[381619221,1756298104414,500.0,0.00020518,2]
[381619222,1756298104444,500.0,0.00020518,2]
[381619223,1756298104472,500.0,0.00020518,2]
[381619224,1756298104502,500.0,0.00020518,2]
[381619225,1756298104538,500.0,0.00020518,2]
[381619226,1756298104807,500.0,0.00020518,2]
[381619227,1756298104834,335.99383639,0.00020518,2]
[381619228,1756298104858,164.00616361,0.00020518,2]
[381619229,1756298104886,526.01724799,0.00020518,2]
[381619230,1756298104915,500.0,0.00020518,2]
[381619231,1756298104950,500.0,0.00020518,2]
[381619232,1756298104984,500.0,0.00020518,2]
[381619233,1756298105019,500.0,0.00020518,2]
[381619234,1756298105047,570.3348109,0.00020518,2]
[381619235,1756298105073,500.0,0.00020518,2]
[381619236,1756298105101,540.03806255,0.00020518,2]
[381619237,1756298105130,500.0,0.00020518,2]
[381619238,1756298105159,500.0,0.00020518,2]
[381619239,1756298105185,500.0,0.00020518,2]
[381619240,1756298105216,500.0,0.00020518,2]
[381619241,1756298105249,500.0,0.00020518,2]
[381619242,1756298105280,500.0,0.00020518,2]
[381619243,1756298105307,500.0,0.00020518,2]
[381619244,1756298105335,500.0,0.00020518,2]
[381619245,1756298105361,500.0,0.00020518,2]
[381619246,1756298105392,500.0,0.00020518,2]
[381619247,1756298105428,530.86,0.00020509,3]
[381619248,1756298105460,168.75371495,0.00020518,2]
[381619249,1756298105484,331.24628505,0.00020518,2]
[381619250,1756298105515,500.0,0.00020518,2]
[381619251,1756298105540,500.0,0.00020518,2]
[381619252,1756298105567,500.0,0.00020518,2]
[381619253,1756298105595,500.0,0.00020518,2]
[381619254,1756298105626,373.13464813,0.00020518,2]
[381619255,1756298105653,500.0,0.00020518,2]
[381619256,1756298105680,500.0,0.00020518,2]
[381619257,1756298105706,500.0,0.00020518,2]
[381619258,1756298105737,500.0,0.00020518,2]
[381619259,1756298105765,500.0,0.00020518,2]
[381619260,1756298105791,500.0,0.00020518,2]
[381619261,1756298105818,500.0,0.00020518,2]
[381619262,1756298105843,500.0,0.00020518,2]
[381619263,1756298105872,500.0,0.00020518,2]
[381619264,1756298105904,500.0,0.00020518,2]
[381619265,1756298105930,500.0,0.00020518,2]
[381619266,1756298105956,500.0,0.00020518,2]
[381619267,1756298105982,500.0,0.00020518,2]
[381619268,1756298106013,500.0,0.00020518,2]
[381619269,1756298106038,295.62906682,0.00020518,2]
[381619270,1756298106060,204.37093318,0.00020518,2]
[381619271,1756298106087,500.0,0.00020518,2]
[381619272,1756298106114,500.0,0.00020518,2]
[381619273,1756298106140,500.0,0.00020518,2]
[381619274,1756298106170,500.0,0.00020518,2]
[381619275,1756298106201,500.0,0.00020518,2]
[381619276,1756298106228,500.0,0.00020518,2]
[381619277,1756298106263,500.0,0.00020518,2]
[381619278,1756298106289,500.0,0.00020518,2]
[381619279,1756298106318,500.0,0.00020518,2]
[381619280,1756298106354,500.0,0.00020518,2]
[381619281,1756298106388,500.0,0.00020518,2]
[381619282,1756298106415,500.0,0.00020518,2]
[381619283,1756298106442,297.27907387,0.00020518,2]
[381619284,1756298106478,500.0,0.00020518,2]
[381619285,1756298106504,500.0,0.00020518,2]
[381619286,1756298106534,500.0,0.00020518,2]
[381619287,1756298106566,377.60637914,0.00020518,2]
[381619288,1756298106600,500.0,0.00020518,2]
[381619289,1756298106627,500.0,0.00020518,2]
[381619290,1756298106656,500.0,0.00020518,2]
[381619291,1756298106682,120.75361381,0.00020518,2]
[381619292,1756298106704,75.9441167,0.00020518,2]
[381619293,1756298106734,500.0,0.00020518,2]
[381619294,1756298106768,500.0,0.00020518,2]
[381619295,1756298106815,500.0,0.00020518,2]
[381619296,1756298106841,500.0,0.00020518,2]
[381619297,1756298106867,500.0,0.00020518,2]
[381619298,1756298106900,500.0,0.00020518,2]
[381619299,1756298106937,278.82802488,0.00020518,2]
[381619300,1756298106970,500.0,0.00020518,2]
[381619301,1756298106997,500.0,0.00020518,2]
[381619302,1756298107362,500.0,0.00020518,2]
[381619303,1756298107406,500.0,0.00020518,2]
[381619304,1756298107442,500.0,0.00020518,2]
[381619305,1756298107477,500.0,0.00020518,2]
[381619306,1756298107517,500.0,0.00020518,2]
[381619307,1756298107559,500.0,0.00020518,2]
[381619308,1756298107590,500.0,0.00020518,2]
[381619309,1756298107621,500.0,0.00020518,2]
[381619310,1756298107658,500.0,0.00020518,2]
[381619311,1756298107693,500.0,0.00020518,2]
[381619312,1756298107729,500.0,0.00020518,2]
[381619313,1756298107760,145.23785842,0.00020518,2]
[381619314,1756298107786,354.76214158,0.00020518,2]
[381619315,1756298107826,500.0,0.00020518,2]
[381619316,1756298107856,500.0,0.00020518,2]
[381619317,1756298107888,500.0,0.00020518,2]
[381619318,1756298107929,500.0,0.00020518,2]
[381619319,1756298107962,500.0,0.00020518,2]
[381619320,1756298107992,500.0,0.00020518,2]
[381619321,1756298108030,500.0,0.00020518,2]
[381619322,1756298108062,500.0,0.00020518,2]
[381619323,1756298108092,500.0,0.00020518,2]
[381619324,1756298108122,500.0,0.00020518,2]
[381619325,1756298108159,500.0,0.00020518,2]
[381619326,1756298108189,463.59584044,0.00020518,2]
[381619327,1756298108221,500.0,0.00020518,2]
[381619328,1756298108252,500.0,0.00020518,2]
[381619329,1756298108306,500.0,0.00020518,2]
[381619330,1756298108342,500.0,0.00020518,2]
[381619331,1756298108397,500.0,0.00020518,2]
[381619332,1756298108447,500.0,0.00020518,2]
[381619333,1756298108484,500.0,0.00020518,2]
[381619334,1756298108525,181.65201798,0.00020518,2]
[381619335,1756298108552,318.34798202,0.00020518,2]
[381619336,1756298108584,500.0,0.00020518,2]
[381619337,1756298108625,615.91171007,0.00020518,2]
[381619338,1756298108663,500.0,0.00020518,2]
[381619339,1756298108700,500.0,0.00020518,2]
[381619340,1756298108730,500.0,0.00020518,2]
[381619341,1756298108770,500.0,0.00020518,2]
[381619342,1756298108818,500.0,0.00020518,2]
[381619343,1756298108849,500.0,0.00020518,2]
[381619344,1756298108894,500.0,0.00020518,2]
[381619345,1756298108963,500.0,0.00020518,2]
[381619346,1756298108995,500.0,0.00020518,2]
[381619347,1756298109029,500.0,0.00020518,2]
[381619348,1756298109064,500.0,0.00020518,2]
[381619349,1756298109109,500.0,0.00020518,2]
[381619350,1756298109140,500.0,0.00020518,2]
[381619351,1756298109185,500.0,0.00020518,2]
[381619352,1756298109224,500.0,0.00020518,2]
[381619353,1756298109327,500.0,0.00020518,2]
[381619354,1756298109362,500.0,0.00020518,2]
[381619355,1756298109446,65.75030791,0.00020518,2]
[381619356,1756298109472,434.24969209,0.00020518,2]
[381619357,1756298109503,500.0,0.00020518,2]
[381619358,1756298110110,1200.0,0.00020518,2]
[381619359,1756298114616,500.0,0.00020518,2]
[381619360,1756298114665,500.0,0.00020518,2]
[381619361,1756298114694,500.0,0.00020518,2]
[381619362,1756298114722,500.0,0.00020518,2]
[381619363,1756298114758,500.0,0.00020518,2]
[381619364,1756298114787,500.0,0.00020518,2]
[381619365,1756298114822,450.91752774,0.00020518,2]
[381619366,1756298114853,577.494366,0.00020518,2]
[381619367,1756298115147,265.43,0.00020509,3]
[381619368,1756298125841,796.3,0.00020509,3]
[381619369,1756298128250,500.0,0.00020518,2]
[381619370,1756298128309,439.26354959,0.00020518,2]
[381619371,1756298133678,500.0,0.00020518,2]
[381619372,1756298133822,502.10748564,0.00020518,2]
[381619373,1756298134175,502.10748564,0.00020518,2]
[381619374,1756298134205,332.1398933,0.00020518,2]
[381619375,1756298134230,7.90633861,0.00020518,2]
[381619376,1756298134351,500.0,0.00020518,2]
[381619377,1756298134682,500.0,0.00020518,2]
[381619378,1756298134788,502.10748564,0.00020518,2]
[381619379,1756298135101,502.10748564,0.00020518,2]
[381619380,1756298135238,500.0,0.00020518,2]
[381619381,1756298135457,502.10748564,0.00020518,2]
[381619382,1756298135594,250.0,0.00020518,2]
[381619383,1756298135837,502.10748564,0.00020518,2]
[381619384,1756298135864,502.10748564,0.00020518,2]
[381619385,1756298135893,502.10748564,0.00020518,2]
[381619386,1756298135924,502.10748564,0.00020518,2]
[381619387,1756298135972,502.10748564,0.00020518,2]
[381619388,1756298136001,502.10748564,0.00020518,2]
[381619389,1756298136037,502.10748564,0.00020518,2]
[381619390,1756298136085,502.10748564,0.00020518,2]
[381619391,1756298136122,502.10748564,0.00020518,2]
[381619392,1756298136149,502.10748564,0.00020518,2]
[381619393,1756298136178,502.10748564,0.00020518,2]
[381619394,1756298136213,502.10748564,0.00020518,2]
[381619395,1756298136244,502.10748564,0.00020518,2]
[381619396,1756298136276,208.38389115,0.00020518,2]
[381619397,1756298136303,293.72359449,0.00020518,2]
[381619398,1756298136336,502.10748564,0.00020518,2]
[381619399,1756298136372,502.10748564,0.00020518,2]
[381619400,1756298136402,502.10748564,0.00020518,2]
[381619401,1756298136447,502.10748564,0.00020518,2]
[381619402,1756298136521,502.10748564,0.00020518,2]
[381619403,1756298136594,502.10748564,0.00020518,2]
[381619404,1756298136622,502.10748564,0.00020518,2]
[381619405,1756298136661,502.10748564,0.00020518,2]
[381619406,1756298136688,502.10748564,0.00020518,2]
[381619407,1756298136722,502.10748564,0.00020518,2]
[381619408,1756298136756,4685.21154911,0.00020509,3]
[381619409,1756298136778,60.57845089,0.00020509,3]
[381619410,1756298136806,502.10748564,0.00020518,2]
[381619411,1756298136831,502.10748564,0.00020518,2]
[381619412,1756298136864,502.10748564,0.00020518,2]
[381619413,1756298136895,502.10748564,0.00020518,2]
[381619414,1756298136921,502.10748564,0.00020518,2]
[381619415,1756298136949,502.10748564,0.00020518,2]
[381619416,1756298137530,4373.15645206,0.00020519,2]
[381619417,1756298145792,2553.63018321,0.00019836,2]
[381619418,1756298145817,10000.01,0.00019836,2]
[381619419,1756298145839,10000.01,0.00019836,2]
[381619420,1756298145861,3933.86545919,0.00019836,2]
[381619421,1756298147255,2372.9,0.00020509,3]
[381619422,1756298151337,174.37978059,0.00020518,2]
[381619423,1756298151367,500.0,0.00020518,2]
[381619424,1756298157989,1186.45,0.00020509,3]
[381619425,1756298163111,300.0,0.00020518,2]
[381619426,1756298164542,500.0,0.00020518,2]
[381619427,1756298164598,494.0,0.00020518,2]
[381619428,1756298164832,500.0,0.00020518,2]
[381619429,1756298166148,38.41476022,0.000198,2]
[381619430,1756298166172,112.58523978,0.000198,2]
[381619431,1756298166503,151.0,0.000187,2]
[381619432,1756298166863,151.0,0.000176,2]
[381619433,1756298167229,151.0,0.000165,2]
[381619434,1756298167557,151.0,0.000154,2]
[381619435,1756298168006,151.0,0.000143,2]
[381619436,1756298168329,151.0,0.000132,2]
[381619437,1756298168649,593.22,0.00020509,3]
[381619438,1756298168774,151.0,0.000121,2]
[381619439,1756298169684,151.0,0.00011,2]
[381619440,1756298170711,500.0,0.00020518,2]
[381619441,1756298170759,264.17848657,0.00020518,2]
[381619442,1756298179818,296.61,0.00020509,3]
[381619443,1756298182150,500.0,0.00020518,2]
[381619444,1756298182198,500.0,0.00020518,2]
[381619445,1756298182515,251.87580432,0.00020518,2]
[381619446,1756298190232,889.87,0.00020509,3]
[381619447,1756298203101,500.0,0.00020518,2]
[381619448,1756298203153,500.0,0.00020518,2]
[381619449,1756298203201,500.0,0.00020518,2]
[381619450,1756298203472,302.96215281,0.00020518,2]
[381619451,1756298205730,1437.1765654,0.000199,2]
[381619453,1756298223463,300.0,0.00020518,2]
[381619454,1756298224494,1200.0,0.00020518,2]
[381619455,1756298230798,500.0,0.00020518,2]
[381619456,1756298230851,500.0,0.00020518,2]
[381619457,1756298230906,500.0,0.00020518,2]
[381619458,1756298230965,500.0,0.00020518,2]
[381619459,1756298231277,454.11141919,0.00020518,2]
[381619460,1756298234390,193.70286904,0.00020518,2]
[381619461,1756298234419,246.16418518,0.00020518,2]
[381619462,1756298244840,309.87324271,0.00020518,2]
[381619464,1756298248623,500.0,0.00020518,2]
[381619465,1756298248675,500.0,0.00020518,2]
[381619466,1756298248730,500.0,0.00020518,2]
[381619467,1756298248794,371.37666498,0.00020518,2]
[381619468,1756298262128,6523.41547656,0.00020419,2]
[381619469,1756298280346,214.51,0.00015984,20]
[381619470,1756298280660,214.51,0.00015984,20]
[381619471,1756298280955,214.51,0.00015984,20]
[381619472,1756298282950,300.0,0.00020518,2]
[381619473,1756298302392,747.76232398,0.00020518,2]
[381619474,1756298313911,553.24,0.00020509,3]
[381619475,1756298321610,157.34994068,0.00020419,2]
[381619476,1756298324485,276.62,0.00020509,3]
[381619477,1756298335244,829.88,0.00020509,3]
[381619478,1756298343886,300.0,0.00020518,2]
[381619479,1756298378603,787.39157896,0.00020419,2]
[381619480,1756298381019,1389.27068008,0.000199,2]
[381619481,1756298397980,219.21,0.00020509,3]
[381619482,1756298402686,300.0,0.00020518,2]
[381619483,1756298403195,300.0,0.00020518,2]
[381619484,1756298403248,300.0,0.00020518,2]
[381619485,1756298403549,300.0,0.00020518,2]
[381619486,1756298404238,300.0,0.00020518,2]
[381619488,1756298406736,1200.0,0.00020518,2]
[381619489,1756298408426,151.0,0.00020519,2]
[381619490,1756298408608,657.63,0.00020509,3]
[381619491,1756298414642,259.10691283,0.00020519,2]
[381619493,1756298418646,-2423.69499488,0.00020519,2]
[381619494,1756298419065,737.13,0.00020509,3]
[381619495,1756298421006,328.92723371,0.00020519,2]
[381619499,1756298428708,500.0,0.00020519,2]
[381619500,1756298429736,500.0,0.00020519,2]
[381619501,1756298431491,500.0,0.00020519,2]
[381619502,1756298432472,500.0,0.00020519,2]
[381619503,1756298433657,500.0,0.00020519,2]
[381619504,1756298435254,544.44515153,0.00020519,2]
[381619506,1756298441058,254.39428097,0.00020519,2]
[381619507,1756298460278,-562.67202665,0.00020519,2]
[381619508,1756298468693,-300.0,0.00020518,2]
[381619509,1756298468925,-1124.37921269,0.00020519,2]
[381619510,1756298469101,-10000.01,0.00020519,2]
[381619511,1756298469366,-10000.01,0.00020519,2]
[381619512,1756298469852,-10000.01,0.00020519,2]
[381619513,1756298469919,-10000.01,0.00020519,2]
[381619514,1756298469949,-10000.01,0.00020519,2]
[381619515,1756298470147,-10000.01,0.00020519,2]
[381619516,1756298470398,-10000.01,0.00020519,2]
[381619517,1756298470700,-10000.01,0.00020519,2]
[381619518,1756298477290,151.0,0.000196,2]
[381619519,1756298477636,151.0,0.000185,2]
[381619520,1756298478001,151.0,0.000174,2]
[381619521,1756298478455,151.0,0.000163,2]
[381619522,1756298478853,151.0,0.000153,2]
[381619523,1756298479352,151.0,0.000142,2]
[381619524,1756298479700,151.0,0.000131,2]
[381619525,1756298480410,151.0,0.000121,2]
[381619526,1756298480465,151.0,0.00011,2]
[381619528,1756298500460,392.57342529,0.00020518,2]
[381619529,1756298500574,290.24097785,0.00020518,2]
[381619530,1756298500602,500.0,0.00020518,2]
[381619531,1756298502310,500.0,0.00020518,2]
[381619532,1756298502836,500.0,0.00020518,2]
[381619533,1756298503116,500.0,0.00020518,2]
[381619534,1756298503239,500.0,0.00020518,2]
[381619535,1756298503271,500.0,0.00020518,2]
[381619536,1756298503298,500.0,0.00020518,2]
[381619537,1756298503326,500.0,0.00020518,2]
[381619538,1756298503353,500.0,0.00020518,2]
[381619539,1756298503380,500.0,0.00020518,2]
[381619540,1756298503407,500.0,0.00020518,2]
[381619541,1756298503434,500.0,0.00020518,2]
[381619542,1756298503460,500.0,0.00020518,2]
[381619543,1756298503494,500.0,0.00020518,2]
[381619544,1756298503760,231.37651656,0.00020518,2]
[381619545,1756298503792,345.30686679,0.00020518,2]
[381619546,1756298503822,500.0,0.00020518,2]
[381619547,1756298503876,485.51221351,0.00020518,2]
[381619548,1756298503898,14.48778649,0.00020518,2]
[381619549,1756298503928,387.12127233,0.00020518,2]
[381619550,1756298505811,500.0,0.00020518,2]
[381619551,1756298505863,500.0,0.00020518,2]
[381619552,1756298505939,500.0,0.00020518,2]
[381619553,1756298506096,500.0,0.00020518,2]
[381619554,1756298506135,520.65533674,0.00020518,2]
[381619555,1756298506897,175.74383222,0.00020518,2]
[381619556,1756298509419,185.6590313,0.00020518,2]
[381619557,1756298509762,785.87558571,0.00020518,2]
[381619558,1756298509790,785.87558571,0.00020518,2]
[381619559,1756298509817,200.3423055,0.00020518,2]
[381619560,1756298509844,785.87558571,0.00020518,2]
[381619561,1756298509874,785.87558571,0.00020518,2]
[381619562,1756298509913,785.87558571,0.00020518,2]
[381619563,1756298509945,785.87558571,0.00020518,2]
[381619564,1756298510148,785.87558571,0.00020518,2]
[381619565,1756298510181,785.87558571,0.00020518,2]
[381619566,1756298510256,228.99574974,0.00020518,2]
[381619567,1756298510285,556.87983597,0.00020518,2]
[381619568,1756298510483,785.87558571,0.00020518,2]
[381619569,1756298511117,785.87558571,0.00020518,2]
[381619570,1756298511227,785.87558571,0.00020518,2]
[381619571,1756298511866,223.39,0.00020509,3]
[381619572,1756298514596,5000.0,0.00020519,2]
[381619573,1756298522778,1381.15,0.00020509,3]
[381619574,1756298527804,1200.0,0.00020518,2]
[381619575,1756298528108,193.70286904,0.00020419,2]
[381619576,1756298531169,500.0,0.00020518,2]
[381619577,1756298531233,500.0,0.00020518,2]
[381619578,1756298531362,540.99772709,0.00020518,2]
[381619579,1756298531499,500.0,0.00020518,2]
[381619580,1756298531590,500.0,0.00020518,2]
[381619581,1756298533875,690.57,0.00020509,3]
[381619582,1756298544529,345.29,0.00020509,3]
[381619583,1756298547621,157.34994068,0.00020419,2]
[381619584,1756298555244,5664.98,0.00020509,3]
[381619585,1756298557552,1342.96165743,0.000199,2]
[381619586,1756298565870,2832.49,0.00020509,3]
[381619587,1756298576529,1416.24,0.00020509,3]
[381619588,1756298587232,708.12,0.00020509,3]
[381619589,1756298597958,354.06,0.00020509,3]
[381619590,1756298608777,177.03,0.00020509,3]
[381619591,1756298619429,531.13,0.00020509,3]
[381619593,1756298629879,446.79,0.00020509,3]
[381619594,1756298640559,1122.23,0.00020509,3]
[381619595,1756298642587,300.0,0.00020518,2]
[381619596,1756298643412,250.0,0.00020304,2]
[381619597,1756298650990,216.75386968,0.00020419,2]
[381619598,1756298651243,837.73,0.00020509,3]
[381619599,1756298656418,3835.67008511,0.00020519,2]
[381619600,1756298661922,418.87,0.00020509,3]
[381619601,1756298672869,209.43,0.00020509,3]
[381619602,1756298674603,500.0,0.00020518,2]
[381619603,1756298675086,500.0,0.00020518,2]
[381619604,1756298676222,500.0,0.00020518,2]
[381619605,1756298676855,500.0,0.00020518,2]
[381619606,1756298677271,3918.98699005,0.00020419,2]
[381619607,1756298677351,500.0,0.00020518,2]
[381619608,1756298677859,180.97333134,0.00020518,2]
[381619609,1756298679518,159.6330416,0.00019775,2]
[381619610,1756298683553,628.33,0.00020509,3]
[381619611,1756298702645,300.0,0.00020518,2]
[381619612,1756298702819,300.0,0.00020518,2]
[381619613,1756298702928,300.0,0.00020518,2]
[381619614,1756298703657,300.0,0.00020518,2]
[381619615,1756298705094,1200.0,0.00020518,2]
[381619616,1756298707034,151.0,0.00020519,2]
[381619617,1756298711518,300.0,0.00020518,2]
[381619618,1756298712632,151.2106036,0.00020519,2]
[381619619,1756298717673,578.43458332,0.00020518,2]
[381619620,1756298717707,578.43458332,0.00020518,2]
[381619621,1756298717742,578.43458332,0.00020518,2]
[381619622,1756298717775,578.43458332,0.00020518,2]
[381619623,1756298717812,578.43458332,0.00020518,2]
[381619624,1756298717852,157.34994071,0.00020419,2]
[381619625,1756298717881,578.43458332,0.00020518,2]
[381619626,1756298717913,578.43458332,0.00020518,2]
[381619627,1756298717952,578.43458332,0.00020518,2]
[381619628,1756298717982,578.43458332,0.00020518,2]
[381619629,1756298718025,578.43458332,0.00020518,2]
[381619630,1756298718063,578.43458332,0.00020518,2]
[381619631,1756298718098,578.43458332,0.00020518,2]
[381619632,1756298718135,578.43458332,0.00020518,2]
[381619633,1756298718166,578.43458332,0.00020518,2]
[381619634,1756298718201,578.43458332,0.00020518,2]
[381619635,1756298718232,578.43458332,0.00020518,2]
[381619636,1756298718267,136.49612257,0.00020518,2]
[381619637,1756298718294,441.93846075,0.00020518,2]
[381619638,1756298718330,578.43458332,0.00020518,2]
[381619639,1756298718369,578.43458332,0.00020518,2]
[381619640,1756298718401,578.43458332,0.00020518,2]
[381619641,1756298718437,578.43458332,0.00020518,2]
[381619642,1756298718487,578.43458332,0.00020518,2]
[381619643,1756298718519,578.43458332,0.00020518,2]
[381619644,1756298718558,578.43458332,0.00020518,2]
[381619645,1756298718588,578.43458332,0.00020518,2]
[381619646,1756298718632,578.43458332,0.00020518,2]
[381619647,1756298718664,578.43458332,0.00020518,2]
[381619648,1756298718700,578.43458332,0.00020518,2]
[381619649,1756298718744,578.43458332,0.00020518,2]
[381619650,1756298718777,578.43458332,0.00020518,2]
[381619651,1756298718822,578.43458332,0.00020518,2]
[381619652,1756298718874,578.43458332,0.00020518,2]
[381619653,1756298718911,578.43458332,0.00020518,2]
[381619654,1756298718946,303.11820613,0.00020518,2]
[381619655,1756298718972,275.31637719,0.00020518,2]
[381619656,1756298719015,578.43458332,0.00020518,2]
[381619657,1756298719058,578.43458332,0.00020518,2]
[381619658,1756298719106,578.43458332,0.00020518,2]
[381619659,1756298719142,578.43458332,0.00020518,2]
[381619660,1756298719178,578.43458332,0.00020518,2]
[381619661,1756298719217,578.43458332,0.00020518,2]
[381619662,1756298719248,578.43458332,0.00020518,2]
[381619663,1756298719279,578.43458332,0.00020518,2]
[381619677,1756298730384,649.05354977,0.00020519,2]
[381619678,1756298734333,1680.88661497,0.000199,2]
[381619679,1756298734927,5000.0,0.00020519,2]
[381619682,1756298743073,500.0,0.00020518,2]
[381619683,1756298743139,500.0,0.00020518,2]
[381619684,1756298743176,500.0,0.00020518,2]
[381619685,1756298743235,500.0,0.00020518,2]
[381619686,1756298743297,500.0,0.00020518,2]
[381619687,1756298743353,623.54674985,0.00020518,2]
[381619688,1756298751567,1209.07928214,0.00020519,2]
[381619689,1756298751595,203.6903084,0.00020419,2]
[381619692,1756298762473,300.0,0.00020518,2]
[381619693,1756298764859,9700.01,0.00019617,2]
[381619694,1756298764883,299.99,0.00019617,2]
[381619695,1756298767933,1200.0,0.00020519,2]
[381619699,1756298777373,156.06169756,0.00020419,2]
[381619702,1756298782920,151.0,0.000196,2]
[381619703,1756298783497,151.0,0.000185,2]
[381619704,1756298783588,151.0,0.000174,2]
[381619705,1756298783924,151.0,0.000163,2]
[381619706,1756298784054,937.83147876,0.00020419,2]
[381619707,1756298784268,151.0,0.000153,2]
[381619708,1756298784407,5000.0,0.00020519,2]
[381619709,1756298784599,151.0,0.000142,2]
[381619710,1756298784959,151.0,0.000131,2]
[381619711,1756298785285,151.0,0.000121,2]
[381619712,1756298785656,151.0,0.00011,2]
[381619716,1756298800174,5000.0,0.00020519,2]
[381619720,1756298816387,5000.0,0.00020519,2]
[381619722,1756298822414,300.0,0.00020518,2]
[381619723,1756298824919,1200.0,0.00020518,2]
[381619724,1756298832957,5000.0,0.00020519,2]
[381619725,1756298849386,3096.47389517,0.00020519,2]
[381619726,1756298859582,-150.71364408,0.00020519,2]
[381619727,1756298859615,-748.99917642,0.00020519,2]
[381619728,1756298869383,-800.0,0.00020368,2]
[381619729,1756298882992,300.0,0.00020518,2]